bitfinex-derivatives/quotes_BTCF0:USTF0_20241010
["timestamp","ask_amount","ask_price","bid_price","bid_amount"]
[1728572340292,0.190529,60642.0,60636.0,0.00247391]
[1728572340293,0.082531,60641.0,60640.0,0.082531]
[1728572340590,0.382531,60641.0,60640.0,0.082531]
[1728572341089,0.3,60641.0,60640.0,0.082531]
[1728572341488,0.38553,60641.0,60640.0,0.082531]
[1728572341677,0.303,60641.0,60640.0,0.082531]
[1728572342189,0.38553,60641.0,60640.0,0.082531]
[1728572342690,0.303,60641.0,60640.0,0.082531]
[1728572342994,0.38553,60641.0,60640.0,0.082531]
[1728572343495,0.38853,60641.0,60640.0,0.082531]
[1728572344281,0.306,60641.0,60640.0,0.082531]
[1728572344593,0.306,60641.0,60640.0,0.082491]
[1728572346589,0.116,60641.0,60640.0,0.082491]
[1728572347479,0.306,60641.0,60640.0,0.082491]
[1728572348285,0.38853,60641.0,60640.0,0.082491]
[1728572348586,0.082532,60640.0,60639.0,0.082532]
[1728572348794,0.29,60640.0,60639.0,0.082532]
[1728572348992,0.29,60640.0,60639.0,0.082533]
[1728572349182,0.372532,60640.0,60639.0,0.082533]
[1728572349982,0.374532,60640.0,60639.0,0.082533]
[1728572350191,0.082536,60638.0,60637.0,0.082536]
[1728572350392,0.733336,60638.0,60637.0,0.082536]
[1728572350591,0.082536,60637.0,60636.0,0.00247391]
[1728572350793,0.213736,60637.0,60636.0,0.08501091]
[1728572350994,0.1312,60637.0,60636.0,0.08501091]
[1728572352995,0.1,60637.0,60636.0,0.08501091]
[1728572353301,0.1,60637.0,60636.0,0.08601091]
[1728572353486,0.1,60637.0,60636.0,0.08701091]
[1728572353791,0.1,60637.0,60636.0,0.08601091]
[1728572354092,0.104,60637.0,60636.0,0.08501091]
[1728572357688,0.104,60637.0,60636.0,0.27501091]
[1728572357992,0.004,60637.0,60636.0,0.27501091]
[1728572358186,0.004,60637.0,60636.0,0.30661091]
[1728572359294,0.004,60637.0,60636.0,0.30761091]
[1728572359295,0.002,60637.0,60636.0,0.30761091]
[1728572359686,0.19,60642.0,60641.0,0.08253]
[1728572359896,0.19,60642.0,60641.0,0.44333]
[1728572360594,0.382529,60642.0,60641.0,0.08253]
[1728572361297,0.386529,60642.0,60641.0,0.08253]
[1728572361695,0.308,60642.0,60641.0,0.08253]
[1728572361901,0.390529,60642.0,60641.0,0.08253]
[1728572362290,0.311,60642.0,60641.0,0.08253]
[1728572362897,0.314,60642.0,60641.0,0.08353]
[1728572365102,0.42841493,60642.0,60641.0,0.08353]
[1728572365499,0.396529,60642.0,60641.0,0.001]
[1728572365697,0.42841528,60642.0,60641.0,0.08353]
[1728572365999,0.42841528,60642.0,60641.0,0.001]
[1728572368193,0.46884085,60642.0,60641.0,0.001]
[1728572369395,0.46884085,60642.0,60641.0,0.08353]
[1728572369795,0.46884085,60642.0,60641.0,0.001]
[1728572370406,0.46884254,60642.0,60641.0,0.001]
[1728572370703,0.42841696,60642.0,60641.0,0.001]
[1728572374207,0.78921696,60642.0,60641.0,0.001]
[1728572374510,0.78909696,60642.0,60641.0,0.001]
[1728572374899,0.78909838,60642.0,60641.0,0.001]
[1728572375096,0.82952576,60642.0,60641.0,0.001]
[1728572375596,0.78909838,60642.0,60641.0,0.001]
[1728572378607,0.757209,60642.0,60641.0,0.001]
[1728572379702,0.78909838,60642.0,60641.0,0.001]
[1728572380609,0.757209,60642.0,60641.0,0.001]
[1728572381805,0.757209,60642.0,60641.0,0.08353]
[1728572382507,0.51668938,60642.0,60641.0,0.08353]
[1728572383007,0.314,60642.0,60641.0,0.08353]
[1728572385608,0.396529,60642.0,60641.0,0.001]
[1728572388315,0.757329,60642.0,60641.0,0.001]
[1728572389009,0.78921779,60642.0,60641.0,0.001]
[1728572389200,0.42841779,60642.0,60641.0,0.001]
[1728572390407,0.396529,60642.0,60641.0,0.001]
[1728572390710,0.42841758,60642.0,60641.0,0.001]
[1728572391912,0.46884486,60642.0,60641.0,0.001]
[1728572393208,0.54275142,60642.0,60641.0,0.001]
[1728572393407,0.42841758,60642.0,60641.0,0.001]
[1728572393608,0.46884559,60642.0,60641.0,0.001]
[1728572393803,0.59954159,60642.0,60641.0,0.001]
[1728572396707,0.46884559,60642.0,60641.0,0.001]
[1728572398014,0.082543,60632.0,60629.0,0.115147]
[1728572398210,0.19,60630.0,60629.0,0.115147]
[1728572398419,0.29,60630.0,60629.0,0.115147]
[1728572399314,0.29,60630.0,60629.0,0.120147]
[1728572399711,0.282,60630.0,60629.0,0.120147]
[1728572399911,0.282,60630.0,60629.0,0.115147]
[1728572400111,0.282,60630.0,60629.0,0.120147]
[1728572400620,0.19,60633.0,60629.0,0.0376]
[1728572400815,0.12,60633.0,60632.0,0.082543]
[1728572401319,0.3608,60643.0,60632.0,0.082543]
[1728572401320,0.443328,60643.0,60635.0,0.082538]
[1728572401521,0.19,60640.0,60639.0,0.082533]
[1728572401710,0.3,60640.0,60634.0,0.36216]
[1728572402020,0.3,60640.0,60634.0,0.3608]
[1728572402021,0.082538,60635.0,60634.0,0.3608]
[1728572402318,0.082542,60633.0,60632.0,0.003]
[1728572402516,0.42443384,60633.0,60632.0,0.003]
[1728572402724,0.61443384,60633.0,60632.0,0.003]
[1728572403311,0.082554,60624.0,60622.0,0.3608]
[1728572403511,0.082555,60623.0,60622.0,0.3608]
[1728572403713,0.192555,60623.0,60622.0,0.3608]
[1728572404514,0.192555,60623.0,60622.0,0.3648]
[1728572405420,0.554355,60623.0,60622.0,0.009]
[1728572405607,0.57067687,60623.0,60622.0,0.009]
[1728572407020,0.56967687,60623.0,60622.0,0.005]
[1728572407813,0.56967687,60623.0,60622.0,0.003]
[1728572408522,0.49612187,60623.0,60620.0,0.083758]
[1728572408726,0.19,60621.0,60620.0,0.083758]
[1728572408919,0.3,60621.0,60620.0,0.083758]
[1728572409422,0.382558,60621.0,60620.0,0.0012]
[1728572409623,0.382558,60621.0,60620.0,0.0022]
[1728572410625,0.3,60621.0,60620.0,0.084759]
[1728572410825,0.19,60621.0,60620.0,0.084759]
[1728572411029,0.006,60623.0,60622.0,0.082556]
[1728572411321,0.006,60623.0,60620.0,1.28708]
[1728572411322,0.19,60627.0,60626.0,0.082551]
[1728572412418,0.3608,60630.0,60629.0,0.082547]
[1728572412927,0.5508,60630.0,60629.0,0.082547]
[1728572414513,0.19,60630.0,60629.0,0.082547]
[1728572415023,0.191,60630.0,60629.0,0.082547]
[1728572415214,0.195,60630.0,60629.0,0.082547]
[1728572417923,0.194,60630.0,60629.0,0.082547]
[1728572418221,0.197,60630.0,60629.0,0.082547]
[1728572418418,0.196,60630.0,60629.0,0.082547]
[1728572419120,0.386,60630.0,60622.0,0.0315]
[1728572419422,0.272555,60623.0,60622.0,0.114056]
[1728572420119,0.272555,60623.0,60622.0,0.082556]
[1728572420517,0.19,60623.0,60622.0,0.082556]
[1728572420828,0.272555,60623.0,60622.0,0.082556]
[1728572421038,0.392555,60623.0,60622.0,0.082556]
[1728572421262,0.392555,60623.0,60622.0,0.087556]
[1728572421534,0.392555,60623.0,60622.0,0.005]
[1728572421727,0.31,60623.0,60622.0,0.087556]
[1728572421924,0.392555,60623.0,60622.0,0.009]
[1728572422132,0.31,60623.0,60622.0,0.091556]
[1728572422630,0.31,60623.0,60622.0,0.087556]
[1728572422832,0.31,60623.0,60622.0,0.091556]
[1728572423422,0.31,60623.0,60622.0,0.009]
[1728572424133,0.32623656,60623.0,60622.0,0.009]
[1728572424324,0.32623656,60623.0,60622.0,0.091556]
[1728572424727,0.33323656,60623.0,60622.0,0.083556]
[1728572425030,0.34123656,60623.0,60622.0,0.084556]
[1728572425717,0.325,60623.0,60622.0,0.084556]
[1728572427130,0.015,60623.0,60622.0,0.769436]
[1728572427335,0.015,60623.0,60622.0,0.579436]
[1728572427724,0.015,60623.0,60622.0,0.084556]
[1728572430333,0.207555,60623.0,60622.0,0.084556]
[1728572430630,0.207555,60623.0,60622.0,0.002]
[1728572431332,0.125,60623.0,60622.0,0.002]
[1728572431541,0.207555,60623.0,60622.0,0.084556]
[1728572431725,0.125,60623.0,60622.0,0.084556]
[1728572432423,0.14090355,60623.0,60622.0,0.084556]
[1728572432932,0.125,60623.0,60622.0,0.084556]
[1728572436528,0.207555,60623.0,60622.0,0.084556]
[1728572436737,0.125,60623.0,60622.0,0.084556]
[1728572436932,0.125,60623.0,60622.0,0.002]
[1728572437238,0.207555,60623.0,60622.0,0.002]
[1728572437436,0.125,60623.0,60622.0,0.002]
[1728572437739,0.207555,60623.0,60622.0,0.002]
[1728572442830,0.23945383,60623.0,60622.0,0.002]
[1728572443834,0.60025383,60623.0,60622.0,0.002]
[1728572444438,0.082564,60616.0,60615.0,0.0004]
[1728572444640,0.923364,60616.0,60615.0,0.0004]
[1728572444838,0.923764,60616.0,60615.0,0.0004]
[1728572445038,0.8412,60616.0,60609.0,0.00247472]
[1728572445346,0.633773,60610.0,60609.0,0.00247472]
[1728572445634,0.743773,60610.0,60609.0,0.00247472]
[1728572446429,0.743773,60610.0,60608.0,0.082975]
[1728572446837,0.743773,60610.0,60609.0,0.082574]
[1728572447031,0.082574,60609.0,60608.0,0.0004]
[1728572447232,0.1004,60609.0,60608.0,0.082975]
[1728572447642,0.182974,60609.0,60608.0,0.0004]
[1728572447839,0.1004,60609.0,60608.0,0.082975]
[1728572449341,0.182974,60609.0,60608.0,0.0004]
[1728572449545,0.1004,60609.0,60608.0,0.082975]
[1728572449748,0.1014,60609.0,60608.0,0.082975]
[1728572450243,0.11877373,60609.0,60608.0,0.088975]
[1728572452642,0.1024,60609.0,60608.0,0.088975]
[1728572454536,0.2224,60609.0,60608.0,0.088975]
[1728572456438,0.2224,60609.0,60608.0,0.0064]
[1728572457237,0.304974,60609.0,60608.0,0.0064]
[1728572458237,0.303974,60609.0,60608.0,0.0004]
[1728572458841,0.302974,60609.0,60608.0,0.0004]
[1728572459042,0.422974,60609.0,60608.0,0.0004]
[1728572459740,0.302974,60609.0,60608.0,0.0004]
[1728572459941,0.422974,60609.0,60608.0,0.0004]
[1728572460447,0.3404,60609.0,60599.0,0.00412]
[1728572460646,0.683786,60600.0,60599.0,0.00412]
[1728572460948,0.793786,60600.0,60598.0,0.082588]
[1728572461156,0.082589,60598.0,60596.0,0.082592]
[1728572461338,0.082589,60598.0,60593.0,0.0004]
[1728572461339,0.12,60597.0,60593.0,0.0004]
[1728572461533,0.23628,60597.0,60593.0,0.0004]
[1728572461738,0.23628,60597.0,60596.0,0.082592]
[1728572462345,0.23586,60597.0,60593.0,0.0004]
[1728572462543,0.0004,60596.0,60595.0,0.08506839]
[1728572462749,0.1204,60596.0,60595.0,0.08506839]
[1728572462948,0.1204,60596.0,60595.0,0.44586839]
[1728572464744,0.1204,60596.0,60595.0,0.44986839]
[1728572465745,0.1214,60596.0,60595.0,0.44986839]
[1728572468046,0.1214,60596.0,60595.0,0.00647539]
[1728572468047,0.203992,60596.0,60595.0,0.00647539]
[1728572468343,0.333992,60596.0,60595.0,0.00522539]
[1728572468542,0.463992,60596.0,60595.0,0.00522539]
[1728572468745,0.333992,60596.0,60595.0,0.00522539]
[1728572469156,0.323992,60596.0,60595.0,0.00522539]
[1728572471151,0.323992,60596.0,60586.0,0.0315]
[1728572471152,0.3814,60596.0,60586.0,0.0315]
[1728572471354,0.0004,60587.0,60586.0,0.0315]
[1728572471557,0.1204,60587.0,60586.0,0.114105]
[1728572472151,0.3804,60587.0,60586.0,0.114105]
[1728572472555,0.8612,60587.0,60581.0,0.0004]
[1728572472853,0.8612,60587.0,60583.0,0.082609]
[1728572472854,0.19,60584.0,60583.0,0.082609]
[1728572473049,0.3,60584.0,60581.0,0.0004]
[1728572473248,0.3,60584.0,60582.0,0.082611]
[1728572473556,0.382609,60584.0,60582.0,0.082611]
[1728572473856,0.08261,60583.0,60582.0,0.082611]
[1728572474045,0.3,60584.0,60583.0,0.001]
[1728572474046,0.203,60584.0,60583.0,0.001]
[1728572474248,0.405608,60584.0,60583.0,0.001]
[1728572474450,0.398608,60584.0,60583.0,0.001]
[1728572474748,0.403608,60584.0,60583.0,0.001]
[1728572475963,0.082611,60582.0,60581.0,0.0004]
[1728572476159,0.202611,60582.0,60581.0,0.0004]
[1728572477458,0.563411,60582.0,60581.0,0.0004]
[1728572477760,0.757411,60582.0,60581.0,0.0004]
[1728572477957,0.761411,60582.0,60581.0,0.0004]
[1728572478759,0.761411,60582.0,60575.0,0.00247591]
[1728572478956,0.0004,60576.0,60575.0,0.08509491]
[1728572479159,0.1204,60576.0,60575.0,0.00247591]
[1728572479460,0.203019,60576.0,60575.0,0.00247591]
[1728572479650,0.1204,60576.0,60575.0,0.00247591]
[1728572479853,0.203019,60576.0,60575.0,0.00447591]
[1728572480255,0.1204,60576.0,60575.0,0.00447591]
[1728572480463,0.203019,60576.0,60575.0,0.00447591]
[1728572481055,0.563819,60576.0,60575.0,0.00447591]
[1728572482077,0.563819,60576.0,60574.0,0.0004]
[1728572482274,0.27262,60575.0,60574.0,0.0004]
[1728572482475,0.27262,60575.0,60554.0,0.04929496]
[1728572482476,0.29,60575.0,60554.0,0.04929496]
[1728572482670,0.1904,60558.0,60557.0,0.46239351]
[1728572483982,0.273043,60558.0,60557.0,0.46239351]
[1728572484284,0.1914,60558.0,60557.0,0.47039351]
[1728572484490,0.1914,60558.0,60557.0,0.10959351]
[1728572485384,0.1924,60558.0,60557.0,0.10959351]
[1728572485781,0.275043,60558.0,60557.0,0.10959351]
[1728572485983,0.085043,60558.0,60557.0,0.09312169]
[1728572486379,0.0024,60558.0,60557.0,0.09312169]
[1728572494784,0.1024,60558.0,60557.0,0.09312169]
[1728572496291,0.185043,60558.0,60557.0,0.09312169]
[1728572499000,0.1024,60558.0,60557.0,0.09312169]
[1728572500301,0.1024,60558.0,60557.0,0.090645]
[1728572504394,0.0024,60558.0,60557.0,0.92993996]
[1728572504598,0.08510315,60571.0,60570.0,0.082627]
[1728572504797,0.19510315,60571.0,60570.0,0.082627]
[1728572506001,0.11247715,60571.0,60570.0,0.082627]
[1728572506200,0.11347715,60571.0,60570.0,0.082627]
[1728572506407,0.11447715,60571.0,60570.0,0.082627]
[1728572506996,0.11447715,60571.0,60570.0,0.272627]
[1728572506997,0.00447715,60571.0,60570.0,0.272627]
[1728572507196,0.00447715,60571.0,60570.0,0.082627]
[1728572507514,0.12447715,60571.0,60561.0,0.3608]
[1728572507703,0.19,60562.0,60561.0,0.443439]
[1728572507901,0.31,60562.0,60561.0,0.443439]
[1728572508098,0.31,60562.0,60561.0,0.3608]
[1728572508099,0.392638,60562.0,60561.0,0.3608]
[1728572509304,0.392638,60562.0,60561.0,0.3678]
[1728572509503,0.392638,60562.0,60561.0,0.450439]
[1728572509811,0.754438,60562.0,60561.0,0.090639]
[1728572510105,0.755438,60562.0,60561.0,0.008]
[1728572511107,0.755438,60562.0,60561.0,0.090639]
[1728572511307,0.945438,60562.0,60561.0,0.008]
[1728572511905,0.755438,60562.0,60561.0,0.008]
[1728572512104,0.945438,60562.0,60561.0,0.008]
[1728572512807,0.944438,60562.0,60561.0,0.001]
[1728572513012,0.755438,60562.0,60561.0,0.008]
[1728572513705,0.77184155,60562.0,60561.0,0.008]
[1728572517413,0.96184155,60562.0,60561.0,0.008]
[1728572519116,0.96084155,60562.0,60561.0,0.004]
[1728572519409,0.96084155,60562.0,60557.0,0.0004]
[1728572519410,0.082643,60558.0,60557.0,0.0004]
[1728572519609,0.4145772,60558.0,60557.0,0.0004]
[1728572519803,0.382643,60558.0,60557.0,0.0004]
[1728572520203,1.23733307,60558.0,60540.0,0.06572662]
[1728572520406,0.19,60541.0,60540.0,0.082668]
[1728572520606,0.572667,60541.0,60539.0,0.082669]
[1728572520806,0.572667,60541.0,60531.0,0.443479]
[1728572521012,0.19,60532.0,60531.0,0.443479]
[1728572521407,0.082683,60529.0,60528.0,0.0326]
[1728572521618,0.082684,60528.0,60523.0,0.082691]
[1728572521809,0.082684,60528.0,60514.0,0.0309]
[1728572521810,0.7408,60524.0,60514.0,0.0309]
[1728572522119,0.19,60515.0,60514.0,0.082703]
[1728572522319,0.082712,60508.0,60507.0,0.04951045]
[1728572522620,0.082712,60508.0,60498.0,0.00837848]
[1728572522621,0.5508,60508.0,60500.0,0.19]
[1728572522822,0.3608,60508.0,60504.0,0.19]
[1728572523116,0.19,60516.0,60507.0,0.272713]
[1728572523309,0.3608,60517.0,60497.0,0.09093574]
[1728572523310,0.19,60512.0,60510.0,0.082708]
[1728572523707,0.19,60512.0,60506.0,0.3608]
[1728572523708,0.3608,60517.0,60515.0,0.082702]
[1728572524105,0.3608,60517.0,60516.0,0.082701]
[1728572524820,0.19,60519.0,60517.0,0.082699]
[1728572525014,0.002,60512.0,60511.0,0.082708]
[1728572525211,0.19,60522.0,60521.0,0.082694]
[1728572525617,0.19,60522.0,60521.0,0.578374]
[1728572525815,0.44348,60532.0,60521.0,0.578374]
[1728572526009,0.3608,60532.0,60531.0,0.08268]
[1728572526215,0.19,60534.0,60523.0,0.3608]
[1728572526410,0.19,60528.0,60527.0,0.082686]
[1728572527118,0.19,60528.0,60527.0,0.682686]
[1728572527315,0.19,60528.0,60527.0,0.082686]
[1728572527718,0.19,60528.0,60527.0,0.084686]
[1728572527909,0.19,60528.0,60527.0,0.085686]
[1728572528110,0.19,60532.0,60527.0,0.685686]
[1728572528316,0.19,60528.0,60527.0,0.085686]
[1728572529620,0.19,60535.0,60534.0,0.082676]
[1728572530218,0.19,60538.0,60534.0,0.082676]
[1728572530524,0.19,60541.0,60538.0,0.082671]
[1728572530722,0.19247897,60545.0,60538.0,0.082671]
[1728572531022,0.19247897,60545.0,60544.0,0.082663]
[1728572531023,0.19,60545.0,60544.0,0.082663]
[1728572531212,0.5508,60545.0,60544.0,0.082663]
[1728572531416,0.19,60545.0,60544.0,0.082663]
[1728572531910,0.272661,60545.0,60544.0,0.082663]
[1728572532110,0.272661,60545.0,60534.0,0.37702774]
[1728572532111,0.637461,60545.0,60534.0,0.37702774]
[1728572532320,0.19,60536.0,60535.0,0.082675]
[1728572533414,0.272673,60536.0,60535.0,0.082675]
[1728572534114,0.19,60536.0,60535.0,0.082675]
[1728572534614,0.194,60536.0,60535.0,0.082675]
[1728572535018,0.276673,60536.0,60535.0,0.082675]
[1728572535418,0.396673,60536.0,60535.0,0.082675]
[1728572535611,0.399673,60536.0,60535.0,0.082675]
[1728572536618,0.317,60536.0,60535.0,0.082675]
[1728572537018,0.197,60536.0,60535.0,0.082675]
[1728572538228,0.317,60536.0,60535.0,0.082675]
[1728572538429,0.197,60536.0,60535.0,0.082675]
[1728572538725,0.193,60536.0,60535.0,0.082675]
[1728572539225,0.003,60536.0,60535.0,0.082675]
[1728572539623,0.00288,60536.0,60535.0,0.082675]
[1728572539817,0.19288,60536.0,60535.0,0.082675]
[1728572540330,0.475346,60557.0,60535.0,0.082675]
[1728572540331,0.19,60544.0,60542.0,0.082665]
[1728572540520,0.19,60544.0,60536.0,0.082673]
[1728572540521,0.19,60548.0,60547.0,0.082658]
[1728572540829,0.29,60548.0,60547.0,0.082658]
[1728572541026,0.372657,60548.0,60547.0,0.082658]
[1728572541631,0.29,60548.0,60547.0,0.082658]
[1728572542219,0.29,60548.0,60542.0,0.3608]
[1728572542424,0.19,60543.0,60542.0,0.082665]
[1728572543121,0.272664,60543.0,60542.0,0.082665]
[1728572543517,0.19,60543.0,60536.0,0.36208]
[1728572543819,0.19,60538.0,60537.0,0.082672]
[1728572544521,0.392671,60538.0,60537.0,0.082672]
[1728572545831,0.392171,60538.0,60537.0,0.082672]
[1728572546636,0.3095,60538.0,60537.0,0.082672]
[1728572546828,0.1895,60538.0,60537.0,0.082672]
[1728572547921,0.1905,60538.0,60537.0,0.082672]
[1728572548134,0.1945,60538.0,60537.0,0.082672]
[1728572548833,0.1975,60538.0,60537.0,0.082672]
[1728572549426,0.082675,60535.0,60534.0,0.082675]
[1728572549623,0.6508,60535.0,60534.0,0.082676]
[1728572549831,0.6508,60535.0,60525.0,0.00247795]
[1728572549832,0.6508,60535.0,60530.0,0.082681]
[1728572550131,0.6508,60535.0,60525.0,0.00247795]
[1728572550132,0.082686,60528.0,60525.0,0.00247795]
[1728572550327,0.082697,60519.0,60518.0,0.00124]
[1728572550531,0.082698,60518.0,60514.0,0.082702]
[1728572550726,0.082698,60518.0,60505.0,0.00247875]
[1728572550727,0.19,60516.0,60505.0,0.00247875]
[1728572551029,0.19,60516.0,60506.0,0.082714]
[1728572551030,0.19,60507.0,60506.0,0.082714]
[1728572551237,0.5508,60507.0,60506.0,0.082714]
[1728572552422,0.5508,60507.0,60505.0,0.00247875]
[1728572552423,0.19,60509.0,60508.0,0.082712]
[1728572552623,0.3608,60512.0,60508.0,0.082712]
[1728572552819,0.001,60518.0,60509.0,0.19]
[1728572553128,0.001,60518.0,60517.0,0.082699]
[1728572553732,0.3608,60519.0,60506.0,0.37654943]
[1728572553936,0.3608,60519.0,60506.0,0.45926343]
[1728572554129,0.3608,60519.0,60506.0,0.37654943]
[1728572554338,0.19,60511.0,60510.0,0.082709]
[1728572555632,0.01,60518.0,60506.0,0.37654943]
[1728572555927,0.082724,60500.0,60497.0,0.082726]
[1728572556137,1.1016,60507.0,60497.0,0.082726]
[1728572556138,0.633525,60498.0,60497.0,0.082726]
[1728572556524,0.5508,60498.0,60497.0,0.082726]
[1728572557833,0.5508,60498.0,60497.0,0.084726]
[1728572558327,0.5508,60498.0,60497.0,0.085726]
[1728572558529,0.3608,60507.0,60497.0,0.085726]
[1728572558733,0.29,60505.0,60504.0,0.082716]
[1728572560328,0.372716,60505.0,60504.0,0.082716]
[1728572560720,0.29,60505.0,60504.0,0.082716]
[1728572561127,0.29,60505.0,60497.0,0.001]
[1728572561128,0.082722,60501.0,60498.0,0.082724]
[1728572561336,0.6508,60499.0,60497.0,0.001]
[1728572561636,0.082725,60498.0,60497.0,0.001]
[1728572562132,0.65168,60499.0,60488.0,0.3608]
[1728572562330,0.65168,60499.0,60491.0,0.082735]
[1728572562331,0.29,60492.0,60491.0,0.082735]
[1728572562828,0.443525,60499.0,60488.0,0.3608]
[1728572562829,0.29,60496.0,60488.0,0.3608]
[1728572563026,0.29,60496.0,60495.0,0.082729]
[1728572563732,0.41,60496.0,60495.0,0.082729]
[1728572563931,0.492728,60496.0,60495.0,0.082729]
[1728572564735,0.492728,60496.0,60495.0,0.086729]
[1728572564736,0.41,60496.0,60495.0,0.086729]
[1728572565740,0.411,60496.0,60495.0,0.087729]
[1728572569445,0.001,60496.0,60495.0,0.087729]
[1728572569839,0.291,60496.0,60495.0,0.087729]
[1728572574353,0.391,60496.0,60495.0,0.087729]
[1728572574849,0.291,60496.0,60495.0,0.087729]
[1728572578446,0.191,60496.0,60495.0,0.087729]
[1728572580448,0.36328004,60511.0,60506.0,0.082714]
[1728572580651,0.36328004,60511.0,60510.0,0.082709]
[1728572580850,0.19,60511.0,60510.0,0.082709]
[1728572581149,0.19,60511.0,60507.0,0.0322]
[1728572581350,0.19,60508.0,60507.0,0.114909]
[1728572581550,0.19,60508.0,60504.0,0.082715]
[1728572581551,0.382712,60508.0,60504.0,0.082715]
[1728572581858,0.272719,60505.0,60504.0,0.082715]
[1728572582043,0.753519,60505.0,60504.0,0.082715]
[1728572582249,0.082723,60502.0,60501.0,0.082719]
[1728572582443,0.082726,60499.0,60493.0,0.3608]
[1728572582645,0.082726,60499.0,60493.0,0.082732]
[1728572582646,0.272734,60494.0,60493.0,0.082732]
[1728572583145,0.3608,60495.0,60494.0,0.082731]
[1728572583352,0.643529,60495.0,60494.0,0.082731]
[1728572583555,0.5608,60495.0,60494.0,0.082731]
[1728572583862,0.643529,60495.0,60494.0,0.082731]
[1728572584358,0.082731,60494.0,60493.0,0.004]
[1728572584555,0.1,60494.0,60493.0,0.086732]
[1728572585263,0.182731,60494.0,60493.0,0.004]
[1728572585449,0.243731,60494.0,60493.0,0.004]
[1728572586154,1.340651,60494.0,60488.0,0.06572662]
[1728572586347,1.340651,60494.0,60488.0,0.082739]
[1728572586348,0.443538,60489.0,60488.0,0.082739]
[1728572586546,0.543538,60489.0,60488.0,0.082739]
[1728572586752,0.08274,60487.0,60486.0,0.082742]
[1728572586953,0.39,60487.0,60486.0,0.082742]
[1728572587151,0.29,60487.0,60486.0,0.082742]
[1728572587358,0.6508,60487.0,60484.0,0.00247965]
[1728572587761,0.73354,60487.0,60486.0,0.082742]
[1728572588261,0.29,60487.0,60486.0,0.082742]
[1728572589363,0.7518,60487.0,60486.0,0.082742]
[1728572589662,0.83454,60487.0,60486.0,0.082742]
[1728572589855,0.7518,60487.0,60486.0,0.082742]
[1728572590167,0.7518,60487.0,60486.0,0.086742]
[1728572590457,0.83554,60487.0,60486.0,0.086742]
[1728572590867,0.83554,60487.0,60484.0,0.00247965]
[1728572590868,0.83454,60487.0,60484.0,0.00247965]
[1728572591160,0.83354,60487.0,60486.0,0.002]
[1728572592554,0.7508,60487.0,60476.0,4e-05]
[1728572592762,0.6508,60480.0,60479.0,0.082751]
[1728572593766,0.3608,60487.0,60479.0,0.082751]
[1728572593767,0.3608,60487.0,60486.0,0.082742]
[1728572593966,0.7708,60487.0,60486.0,0.082742]
[1728572594759,0.3608,60487.0,60486.0,0.082742]
[1728572594958,0.29,60495.0,60485.0,0.082743]
[1728572595271,0.36,60495.0,60494.0,0.082731]
[1728572595859,0.29,60495.0,60494.0,0.082731]
[1728572596261,0.37489941,60499.0,60494.0,0.082731]
[1728572596465,0.3608,60499.0,60498.0,0.082725]
[1728572596965,0.3608,60511.0,60510.0,0.082709]
[1728572597170,0.29,60515.0,60514.0,0.082703]
[1728572598171,0.372702,60515.0,60514.0,0.082703]
[1728572599162,0.385912,60515.0,60514.0,0.082703]
[1728572599362,0.390912,60515.0,60514.0,0.082703]
[1728572599668,0.400912,60515.0,60514.0,0.082703]
[1728572599869,0.395912,60515.0,60514.0,0.082703]
[1728572600071,0.32221,60515.0,60514.0,0.082703]
[1728572601068,0.32221,60515.0,60506.0,0.0624]
[1728572601267,0.32221,60515.0,60506.0,0.145114]
[1728572601268,0.29,60507.0,60506.0,0.145114]
[1728572601969,0.372713,60507.0,60506.0,0.0311]
[1728572602175,0.29,60508.0,60507.0,0.082713]
[1728572603364,0.294,60508.0,60507.0,0.082713]
[1728572603967,0.297,60508.0,60507.0,0.082713]
[1728572604977,0.296,60508.0,60507.0,0.082713]
[1728572605172,0.082716,60506.0,60504.0,0.082717]
[1728572605374,0.296,60508.0,60504.0,0.082717]
[1728572605375,0.082716,60505.0,60504.0,0.082717]
[1728572605677,0.053286,60505.0,60504.0,0.082717]
[1728572606179,0.082721,60502.0,60501.0,0.08272]
[1728572606365,0.372721,60502.0,60501.0,0.08272]
[1728572607673,0.376721,60502.0,60501.0,0.08272]
[1728572608176,0.294,60502.0,60501.0,0.08272]
[1728572608678,0.298,60502.0,60501.0,0.08272]
[1728572609276,0.008,60502.0,60501.0,0.08272]
[1728572609584,0.009,60502.0,60501.0,0.08272]
[1728572609768,0.009,60502.0,60501.0,0.44352]
[1728572609973,0.005,60502.0,60501.0,0.44352]
[1728572610272,0.009,60502.0,60501.0,0.44352]
[1728572610574,0.009,60502.0,60501.0,0.08272]
[1728572611076,0.002,60502.0,60501.0,0.08372]
[1728572611476,0.002,60502.0,60501.0,0.44452]
[1728572611968,0.3608,60510.0,60509.0,0.08271]
[1728572612170,0.372681,60531.0,60517.0,0.082699]
[1728572612171,0.3608,60522.0,60517.0,0.082699]
[1728572612371,0.3608,60527.0,60520.0,0.082695]
[1728572612666,0.5508,60527.0,60526.0,0.082687]
[1728572614277,0.3748,60527.0,60526.0,0.082687]